fUSD/lending_fUSD_20240919
["ID","MTS","AMOUNT","RATE_DAILY","PERIOD"]
[338501914,1726707058775,-500.0,0.00014794,2]
[338501915,1726707058785,-347.15795821,0.00014794,2]
[338501916,1726707058795,-805.21,0.00014794,2]
[338501917,1726707058804,-500.0,0.00014794,2]
[338501918,1726707058814,-562.79,0.00014794,2]
[338501919,1726707058823,-500.0,0.00014794,2]
[338501920,1726707058832,-500.0,0.00014794,2]
[338501921,1726707058842,-500.0,0.00014794,2]
[338501922,1726707058852,-662.12,0.00014794,2]
[338501923,1726707058862,-500.0,0.00014794,2]
[338501924,1726707058871,-1577.94,0.00014794,2]
[338501925,1726707058880,-463.02581769,0.00014794,2]
[338501926,1726707058890,-282.56434372,0.00014794,2]
[338501927,1726707058899,-1301.86,0.00014794,2]
[338501928,1726707058908,-500.0,0.00014794,2]
[338501929,1726707058917,-500.0,0.00014794,2]
[338501930,1726707058930,-500.0,0.00014794,2]
[338501931,1726707058939,-500.0,0.00014794,2]
[338501932,1726707058948,-1731.07,0.00014794,2]
[338501933,1726707058958,-500.0,0.00014794,2]
[338501934,1726707058967,-1199.87,0.00014794,2]
[338501935,1726707058976,-2373.87,0.00014794,2]
[338501936,1726707058985,-1416.97,0.00014794,2]
[338501937,1726707058995,-1099.19,0.00014794,2]
[338501938,1726707059004,-500.0,0.00014794,2]
[338501939,1726707059014,-1455.38,0.00014794,2]
[338501940,1726707059023,-500.0,0.00014794,2]
[338501941,1726707059032,-500.0,0.00014794,2]
[338501942,1726707059042,-913.29,0.00014794,2]
[338501943,1726707059051,-527.98808275,0.00014794,2]
[338501944,1726707059279,-500.0,0.00014794,2]
[338501945,1726707059289,-500.0,0.00014794,2]
[338501946,1726707059298,-879.23,0.00014794,2]
[338501947,1726707059307,-509.64,0.00014794,2]
[338501948,1726707059316,-500.0,0.00014794,2]
[338501949,1726707059326,-500.0,0.00014794,2]
[338501950,1726707059336,-838.94,0.00014794,2]
[338501951,1726707059345,-660.59,0.00014794,2]
[338501952,1726707059355,-806.6,0.00014794,2]
[338501953,1726707059365,-1751.93,0.00014794,2]
[338501954,1726707059375,-1345.39,0.00014794,2]
[338501955,1726707059384,-741.94,0.00014794,2]
[338501956,1726707059394,-194.69644009,0.00014794,2]
[338501957,1726707059403,-1095.9,0.00014794,2]
[338501958,1726707059412,-846.88,0.00014794,2]
[338501959,1726707059424,-500.0,0.00014794,2]
[338501960,1726707059434,-500.0,0.00014794,2]
[338501961,1726707059443,-500.0,0.00014794,2]
[338501962,1726707059452,-4150.44,0.00014794,2]
[338501963,1726707059461,-630.26396756,0.00014794,2]
[338501964,1726707059470,-1984.99,0.00014794,2]
[338501965,1726707059480,-1896.65,0.00014794,2]
[338501966,1726707059489,-927.86,0.00014794,2]
[338501967,1726707059499,-500.0,0.00014794,2]
[338501968,1726707059508,-500.0,0.00014794,2]
[338501969,1726707059517,-500.0,0.00014794,2]
[338501970,1726707059527,-809.31,0.00014794,2]
[338501971,1726707059536,-500.0,0.00014794,2]
[338501972,1726707059546,-500.0,0.00014794,2]
[338501973,1726707059555,-603.68,0.00014794,2]
[338501974,1726707059565,-500.0,0.00014794,2]
[338501975,1726707059574,-2063.19,0.00014794,2]
[338501976,1726707059584,-500.0,0.00014794,2]
[338501977,1726707059593,-4814.2,0.00014794,2]
[338501978,1726707059603,-1874.11,0.00014794,2]
[338501979,1726707059612,-1994.19,0.00014794,2]
[338501980,1726707059622,-500.0,0.00014794,2]
[338501981,1726707059630,-500.0,0.00014794,2]
[338501982,1726707059640,-696.21,0.00014794,2]
[338501983,1726707059649,-500.0,0.00014794,2]
[338501984,1726707059658,-500.0,0.00014794,2]
[338501985,1726707059667,-864.28,0.00014794,2]
[338501986,1726707059678,-500.0,0.00014794,2]
[338501987,1726707059687,-1796.32,0.00014794,2]
[338501988,1726707059696,-500.0,0.00014794,2]
[338501989,1726707059705,-4131.38,0.00014794,2]
[338501990,1726707059714,-1508.81,0.00014794,2]
[338501991,1726707059724,-500.0,0.00014794,2]
[338501992,1726707059733,-500.0,0.00014794,2]
[338501993,1726707059743,-3037.14,0.00014794,2]
[338501994,1726707059752,-1133.43,0.00014794,2]
[338501995,1726707059762,-500.0,0.00014794,2]
[338501996,1726707059771,-500.0,0.00014794,2]
[338501997,1726707059781,-500.0,0.00014794,2]
[338501998,1726707059790,-807.55,0.00014794,2]
[338501999,1726707059799,-500.0,0.00014794,2]
[338502000,1726707059808,-500.0,0.00014794,2]
[338502001,1726707059817,-1461.29,0.00014794,2]
[338502002,1726707059827,-828.17,0.00014794,2]
[338502003,1726707059836,-1206.27,0.00014794,2]
[338502004,1726707059845,-500.0,0.00014794,2]
[338502005,1726707059854,-500.0,0.00014794,2]
[338502006,1726707059863,-2050.93,0.00014794,2]
[338502007,1726707059873,-500.0,0.00014794,2]
[338502008,1726707059882,-500.0,0.00014794,2]
[338502009,1726707059891,-1446.98,0.00014794,2]
[338502010,1726707059900,-4462.63,0.00014794,2]
[338502011,1726707059910,-600.04,0.00014794,2]
[338502012,1726707059923,-946.81,0.00014794,2]
[338502013,1726707059933,-500.0,0.00014794,2]
[338502014,1726707059942,-500.0,0.00014794,2]
[338502015,1726707059952,-1844.38,0.00014794,2]
[338502016,1726707059962,-500.0,0.00014794,2]
[338502017,1726707059972,-500.0,0.00014794,2]
[338502018,1726707059981,-500.0,0.00014794,2]
[338502019,1726707059991,-500.0,0.00014794,2]
[338502020,1726707060001,-500.0,0.00014794,2]
[338502021,1726707060011,-500.0,0.00014794,2]
[338502022,1726707060021,-3296.32,0.00014794,2]
[338502023,1726707060031,-500.0,0.00014794,2]
[338502024,1726707060041,-1742.22,0.00014794,2]
[338502025,1726707060051,-500.0,0.00014794,2]
[338502026,1726707060061,-500.0,0.00014794,2]
[338502027,1726707060070,-1227.12,0.00014794,2]
[338502028,1726707060080,-716.23,0.00014794,2]
[338502029,1726707060089,-500.0,0.00014794,2]
[338502030,1726707060098,-1250.55,0.00014794,2]
[338502031,1726707060108,-396.64971437,0.00014794,2]
[338502032,1726707060117,-1526.19,0.00014794,2]
[338502033,1726707060127,-500.0,0.00014794,2]
[338502034,1726707060136,-500.0,0.00014794,2]
[338502035,1726707060146,-601.6,0.00014794,2]
[338502036,1726707060156,-173.139632,0.00014794,2]
[338502037,1726707060172,-907.74,0.00014794,2]
[338502038,1726707060182,-1200.64,0.00014794,2]
[338502039,1726707060192,-500.0,0.00014794,2]
[338502040,1726707060201,-928.44,0.00014794,2]
[338502041,1726707060213,-2582.16,0.00014794,2]
[338502042,1726707060222,-500.0,0.00014794,2]
[338502043,1726707060231,-1068.49,0.00014794,2]
[338502044,1726707060243,-500.0,0.00014794,2]
[338502045,1726707060254,-500.0,0.00014794,2]
[338502046,1726707060263,-3230.95,0.00014794,2]
[338502047,1726707060273,-676.0,0.00014794,2]
[338502048,1726707060282,-500.0,0.00014794,2]
[338502049,1726707060292,-500.0,0.00014794,2]
[338502050,1726707060301,-2192.52,0.00014794,2]
[338502051,1726707060311,-500.0,0.00014794,2]
[338502052,1726707060320,-500.0,0.00014794,2]
[338502053,1726707060330,-1620.92,0.00014794,2]
[338502054,1726707060339,-20000.0,0.00014794,2]
[338502055,1726707060349,-187.14556612,0.00014794,2]
[338502056,1726707060359,-500.0,0.00014794,2]
[338502057,1726707060368,-500.0,0.00014794,2]
[338502058,1726707060378,-1894.41,0.00014794,2]
[338502059,1726707060387,-500.0,0.00014794,2]
[338502060,1726707060397,-918.52,0.00014794,2]
[338502061,1726707060406,-500.0,0.00014794,2]
[338502062,1726707060415,-4453.14,0.00014794,2]
[338502063,1726707060429,-604.75,0.00014794,2]
[338502064,1726707060438,-1454.57,0.00014794,2]
[338502065,1726707060448,-1946.08,0.00014794,2]
[338502066,1726707060457,-2874.52,0.00014794,2]
[338502067,1726707060466,-335.62506783,0.00014794,2]
[338502068,1726707060477,-797.74,0.00014794,2]
[338502069,1726707060486,-1496.82,0.00014794,2]
[338502070,1726707060496,-500.0,0.00014794,2]
[338502071,1726707060506,-500.0,0.00014794,2]
[338502072,1726707060516,-2882.22,0.00014794,2]
[338502073,1726707060525,-780.43,0.00014794,2]
[338502074,1726707060535,-1810.28,0.00014794,2]
[338502075,1726707060544,-500.0,0.00014794,2]
[338502076,1726707060554,-887.83,0.00014794,2]
[338502077,1726707060563,-809.5,0.00014794,2]
[338502078,1726707060573,-506.42,0.00014794,2]
[338502079,1726707060582,-500.0,0.00014794,2]
[338502080,1726707060592,-3034.06,0.00014794,2]
[338502081,1726707060601,-879.8,0.00014794,2]
[338502082,1726707060611,-742.58,0.00014794,2]
[338502083,1726707060620,-3180.21,0.00014794,2]
[338502084,1726707060630,-500.0,0.00014794,2]
[338502085,1726707060639,-1379.38,0.00014794,2]
[338502086,1726707060649,-500.0,0.00014794,2]
[338502087,1726707060658,-580.54,0.00014794,2]
[338502088,1726707060668,-500.0,0.00014794,2]
[338502089,1726707060680,-577.09,0.00014794,2]
[338502090,1726707060690,-500.0,0.00014794,2]
[338502091,1726707060699,-500.0,0.00014794,2]
[338502092,1726707060708,-500.0,0.00014794,2]
[338502093,1726707060718,-500.0,0.00014794,2]
[338502094,1726707060727,-653.68,0.00014794,2]
[338502095,1726707060737,-500.0,0.00014794,2]
[338502096,1726707060747,-773.55,0.00014794,2]
[338502097,1726707060756,-3354.58,0.00014794,2]
[338502098,1726707060766,-2268.38,0.00014794,2]
[338502099,1726707060776,-3156.94,0.00014794,2]
[338502100,1726707060785,-6924.03,0.00014794,2]
[338502101,1726707060795,-500.0,0.00014794,2]
[338502102,1726707060804,-500.0,0.00014794,2]
[338502103,1726707060814,-619.14,0.00014794,2]
[338502104,1726707060823,-500.0,0.00014794,2]
[338502105,1726707060833,-500.0,0.00014794,2]
[338502106,1726707060842,-1884.36,0.00014794,2]
[338502107,1726707060851,-624.45,0.00014794,2]
[338502108,1726707060861,-1057.91,0.00014794,2]
[338502109,1726707060871,-500.0,0.00014794,2]
[338502110,1726707060881,-500.0,0.00014794,2]
[338502111,1726707060891,-697.35,0.00014794,2]
[338502112,1726707060900,-2801.19,0.00014794,2]
[338502113,1726707060910,-500.0,0.00014794,2]
[338502114,1726707060919,-695.69,0.00014794,2]
[338502115,1726707060933,-500.0,0.00014794,2]
[338502116,1726707060943,-2450.17,0.00014794,2]
[338502117,1726707060952,-500.0,0.00014794,2]
[338502118,1726707060962,-500.0,0.00014794,2]
[338502119,1726707060971,-747.97,0.00014794,2]
[338502120,1726707060981,-500.0,0.00014794,2]
[338502121,1726707060990,-1281.3,0.00014794,2]
[338502122,1726707060999,-500.0,0.00014794,2]
[338502123,1726707061008,-2707.23,0.00014794,2]
[338502124,1726707061017,-3706.7,0.00014794,2]
[338502125,1726707061027,-3534.38,0.00014794,2]
[338502126,1726707061036,-974.83,0.00014794,2]
[338502127,1726707061045,-500.0,0.00014794,2]
[338502128,1726707061055,-500.0,0.00014794,2]
[338502129,1726707061064,-500.0,0.00014794,2]
[338502130,1726707061073,-500.0,0.00014794,2]
[338502131,1726707061083,-1645.96,0.00014794,2]
[338502132,1726707061093,-500.0,0.00014794,2]
[338502133,1726707061102,-500.0,0.00014794,2]
[338502134,1726707061111,-500.0,0.00014794,2]
[338502135,1726707061120,-500.0,0.00014794,2]
[338502136,1726707061129,-1878.28,0.00014794,2]
[338502137,1726707061139,-500.0,0.00014794,2]
[338502138,1726707061148,-4660.33,0.00014794,2]
[338502139,1726707061158,-1998.18,0.00014794,2]
[338502140,1726707061173,-500.0,0.00014794,2]
[338502141,1726707061182,-1070.62,0.00014794,2]
[338502142,1726707061191,-500.0,0.00014794,2]
[338502143,1726707061201,-565.26,0.00014794,2]
[338502144,1726707061210,-500.0,0.00014794,2]
[338502145,1726707061219,-1641.75,0.00014794,2]
[338502146,1726707061229,-500.0,0.00014794,2]
[338502147,1726707061238,-760.53,0.00014794,2]
[338502148,1726707061248,-500.0,0.00014794,2]
[338502149,1726707061257,-500.0,0.00014794,2]
[338502150,1726707061266,-2435.25,0.00014794,2]
[338502151,1726707061276,-500.0,0.00014794,2]
[338502152,1726707061286,-500.0,0.00014794,2]
[338502153,1726707061295,-4139.71,0.00014794,2]
[338502154,1726707061305,-2355.65,0.00014794,2]
[338502155,1726707061314,-500.0,0.00014794,2]
[338502156,1726707061324,-1033.24,0.00014794,2]
[338502157,1726707061335,-500.0,0.00014794,2]
[338502158,1726707061346,-500.0,0.00014794,2]
[338502159,1726707061356,-500.0,0.00014794,2]
[338502160,1726707061365,-1605.51,0.00014794,2]
[338502161,1726707061375,-3467.5,0.00014794,2]
[338502162,1726707061384,-500.0,0.00014794,2]
[338502163,1726707061393,-500.0,0.00014794,2]
[338502164,1726707061403,-500.0,0.00014794,2]
[338502165,1726707061413,-576.93,0.00014794,2]
[338502166,1726707061424,-572.36,0.00014794,2]
[338502167,1726707061434,-500.0,0.00014794,2]
[338502168,1726707061443,-3169.37,0.00014794,2]
[338502169,1726707061453,-500.0,0.00014794,2]
[338502170,1726707061462,-1027.62,0.00014794,2]
[338502171,1726707061471,-2589.81,0.00014794,2]
[338502172,1726707061481,-500.0,0.00014794,2]
[338502173,1726707061490,-500.0,0.00014794,2]
[338502174,1726707061499,-591.02,0.00014794,2]
[338502175,1726707061509,-668.29,0.00014794,2]
[338502176,1726707061518,-5369.48,0.00014794,2]
[338502177,1726707061528,-849.65,0.00014794,2]
[338502178,1726707061537,-2470.83,0.00014794,2]
[338502179,1726707061547,-2772.23,0.00014794,2]
[338502180,1726707061557,-500.0,0.00014794,2]
[338502181,1726707061566,-639.94,0.00014794,2]
[338502182,1726707061576,-727.23,0.00014794,2]
[338502183,1726707061585,-500.0,0.00014794,2]
[338502184,1726707061594,-500.0,0.00014794,2]
[338502185,1726707061604,-500.0,0.00014794,2]
[338502186,1726707061613,-500.0,0.00014794,2]
[338502187,1726707061623,-4854.59,0.00014794,2]
[338502188,1726707061633,-2067.26,0.00014794,2]
[338502189,1726707061642,-1327.4,0.00014794,2]
[338502190,1726707061651,-478.88118411,0.00014794,2]
[338502191,1726707061661,-1957.95,0.00014794,2]
[338502192,1726707061674,-537.16,0.00014794,2]
[338502193,1726707061683,-1347.25,0.00014794,2]
[338502194,1726707061692,-500.0,0.00014794,2]
[338502195,1726707061702,-2320.13,0.00014794,2]
[338502196,1726707061791,-500.0,0.00014794,2]
[338502197,1726707061800,-500.0,0.00014794,2]
[338502198,1726707061810,-500.0,0.00014794,2]
[338502199,1726707061819,-1924.24,0.00014794,2]
[338502200,1726707061828,-500.0,0.00014794,2]
[338502201,1726707061837,-500.0,0.00014794,2]
[338502202,1726707061846,-500.0,0.00014794,2]
[338502203,1726707061855,-500.0,0.00014794,2]
[338502204,1726707061864,-1358.89,0.00014794,2]
[338502205,1726707061874,-500.0,0.00014794,2]
[338502206,1726707061883,-1823.73,0.00014794,2]
[338502207,1726707061892,-500.0,0.00014794,2]
[338502208,1726707061902,-1187.29,0.00014794,2]
[338502209,1726707061911,-1334.53,0.00014794,2]
[338502210,1726707061923,-413.73057557,0.00014794,2]
[338502211,1726707061932,-1499.39,0.00014794,2]
[338502212,1726707061940,-643.64,0.00014794,2]
[338502213,1726707061949,-1902.29,0.00014794,2]
[338502214,1726707061958,-1490.67,0.00014794,2]
[338502215,1726707061966,-3667.38,0.00014794,2]
[338502216,1726707061975,-500.0,0.00014794,2]
[338502217,1726707061985,-500.0,0.00014794,2]
[338502218,1726707061994,-954.77,0.00014794,2]
[338502219,1726707062003,-500.0,0.00014794,2]
[338502220,1726707062012,-500.0,0.00014794,2]
[338502221,1726707062022,-1845.95,0.00014794,2]
[338502222,1726707062031,-1898.17,0.00014794,2]
[338502223,1726707062041,-2938.53,0.00014794,2]
[338502224,1726707062050,-1485.12,0.00014794,2]
[338502225,1726707062059,-500.0,0.00014794,2]
[338502226,1726707062068,-3884.4,0.00014794,2]
[338502227,1726707062078,-500.0,0.00014794,2]
[338502228,1726707062087,-840.46,0.00014794,2]
[338502229,1726707062096,-500.0,0.00014794,2]
[338502230,1726707062105,-500.0,0.00014794,2]
[338502231,1726707062115,-1594.46,0.00014794,2]
[338502232,1726707062124,-705.61,0.00014794,2]
[338502233,1726707062134,-5461.38,0.00014794,2]
[338502234,1726707062143,-500.0,0.00014794,2]
[338502235,1726707062152,-500.0,0.00014794,2]
[338502236,1726707062167,-500.0,0.00014794,2]
[338502237,1726707062184,-500.0,0.00014794,2]
[338502238,1726707062193,-634.31,0.00014794,2]
[338502239,1726707062202,-1071.03,0.00014794,2]
[338502240,1726707062211,-2778.42430138,0.00014794,2]
[338502241,1726707062267,-295.34501265,0.00014794,2]
[338502242,1726707062278,-951.22068597,0.00014794,2]
[338502243,1726707062287,-822.22,0.00014794,2]
[338502244,1726707062296,-500.0,0.00014794,2]
[338502245,1726707062306,-3488.51,0.00014794,2]
[338502246,1726707062315,-2229.24,0.00014794,2]
[338502247,1726707062324,-500.0,0.00014794,2]
[338502248,1726707062333,-500.0,0.00014794,2]
[338502249,1726707062342,-1038.61,0.00014794,2]
[338502250,1726707062351,-500.0,0.00014794,2]
[338502251,1726707062360,-500.0,0.00014794,2]
[338502252,1726707062369,-2479.46,0.00014794,2]
[338502253,1726707062379,-633.25465683,0.00014794,2]
[338502254,1726707062388,-500.0,0.00014794,2]
[338502255,1726707062397,-3331.51,0.00014794,2]
[338502256,1726707062406,-724.0746572,0.00014794,2]
[338502257,1726707062419,-11.5753428,0.00014794,2]
[338502258,1726707062431,-614.35,0.00014794,2]
[338502259,1726707062440,-500.0,0.00014794,2]
[338502260,1726707062449,-500.0,0.00014794,2]
[338502261,1726707062458,-1106.59,0.00014794,2]
[338502262,1726707062466,-838.71,0.00014794,2]
[338502263,1726707062475,-719.47,0.00014794,2]
[338502264,1726707062484,-596.47,0.00014794,2]
[338502265,1726707062494,-500.0,0.00014794,2]
[338502266,1726707062503,-5257.52,0.00014794,2]
[338502267,1726707062512,-500.0,0.00014794,2]
[338502268,1726707062521,-500.0,0.00014794,2]
[338502269,1726707062530,-500.0,0.00014794,2]
[338502270,1726707062539,-500.0,0.00014794,2]
[338502271,1726707062548,-4230.53,0.00014794,2]
[338502272,1726707062558,-1538.8,0.00014794,2]
[338502273,1726707062567,-764.9,0.00014794,2]
[338502274,1726707062576,-500.0,0.00014794,2]
[338502275,1726707062585,-500.0,0.00014794,2]
[338502276,1726707062594,-1328.96,0.00014794,2]
[338502277,1726707062603,-972.44,0.00014794,2]
[338502278,1726707062613,-425.84099572,0.00014794,2]
[338502279,1726707062622,-2531.89,0.00014794,2]
[338502280,1726707062631,-1106.11,0.00014794,2]
[338502281,1726707062640,-3093.97,0.00014794,2]
[338502282,1726707062650,-500.0,0.00014794,2]
[338502283,1726707062659,-500.0,0.00014794,2]
[338502284,1726707062668,-547.25,0.00014794,2]
[338502285,1726707062679,-500.0,0.00014794,2]
[338502286,1726707062689,-500.0,0.00014794,2]
[338502287,1726707062698,-500.0,0.00014794,2]
[338502288,1726707062708,-500.0,0.00014794,2]
[338502289,1726707062717,-2538.61,0.00014794,2]
[338502290,1726707062727,-500.0,0.00014794,2]
[338502291,1726707062736,-908.08,0.00014794,2]
[338502292,1726707062745,-3465.72,0.00014794,2]
[338502293,1726707062755,-2135.65,0.00014794,2]
[338502294,1726707062765,-500.0,0.00014794,2]
[338502295,1726707062774,-1361.48,0.00014794,2]
[338502296,1726707062784,-1102.72,0.00014794,2]
[338502297,1726707062793,-1003.21,0.00014794,2]
[338502298,1726707062802,-500.0,0.00014794,2]
[338502299,1726707062812,-1130.26,0.00014794,2]
[338502300,1726707062821,-500.0,0.00014794,2]
[338502301,1726707062831,-500.0,0.00014794,2]
[338502302,1726707062840,-124.1721513,0.00014794,2]
[338502303,1726707063574,-770.2778487,0.00014794,2]
[338502304,1726707063584,-1232.37,0.00014794,2]
[338502305,1726707063594,-751.57,0.00014794,2]
[338502306,1726707063603,-500.0,0.00014794,2]
[338502307,1726707063614,-500.0,0.00014794,2]
[338502308,1726707063623,-500.0,0.00014794,2]
[338502309,1726707063632,-2756.93,0.00014794,2]
[338502310,1726707063640,-2307.17928589,0.00014794,2]
[338502311,1726707063657,-529.40071411,0.00014794,2]
[338502312,1726707063666,-1868.99928589,0.00014794,2]
[338502313,1726707063682,-695.46071411,0.00014794,2]
[338502314,1726707063697,-2401.88,0.00014794,2]
[338502315,1726707063706,-601.0708085,0.00014794,2]
[338502316,1726707070580,281.06,0.00012072,2]
[338502317,1726707087104,500.0,0.00011164,2]
[338502318,1726707157444,500.0,0.00011164,2]
[338502319,1726707210779,150.0,0.00014726,120]
[338502320,1726707281826,153.08,0.00010959,2]
[338502321,1726707573128,330.31,0.00011309,2]
[338502322,1726707630732,150.0,0.00014798,120]
[338502323,1726707871480,150.0,0.00014392,120]
[338502324,1726708005179,156.33,0.00010959,2]
[338502326,1726708057116,500.0,0.00011164,2]
[338502333,1726708171872,313.79,0.00011046,2]
[338502349,1726708232301,-155.84,0.00012974,2]
[338502350,1726708232311,-259.38091175,0.00012977,2]
[338502351,1726708232323,-405.06908825,0.00012977,2]
[338502352,1726708232333,-1000.0,0.00012978,2]
[338502353,1726708232342,-150.0,0.00013044,2]
[338502354,1726708232351,-150.0,0.00013044,2]
[338502355,1726708232360,-2378.81721934,0.0001311,2]
[338502356,1726708232372,-626.42675624,0.0001311,2]
[338502357,1726708232387,-291.65,0.0001311,2]
[338502358,1726708232413,-1895.25490486,0.0001311,2]
[338502359,1726708232425,-555.19111956,0.0001311,2]
[338502360,1726708232435,-861.76,0.00013111,2]
[338502361,1726708232444,-250.0,0.00013132,2]
[338502362,1726708232453,-250.0,0.0001316,2]
[338502363,1726708232463,-1852.42,0.0001316,2]
[338502364,1726708232472,-512.38,0.00013187,2]
[338502365,1726708232482,-2882.78420727,0.00013189,2]
[338502366,1726708232494,-853.22579273,0.00013189,2]
[338502367,1726708232503,-174.47,0.00013274,2]
[338502368,1726708232512,-1218.31,0.00013274,2]
[338502369,1726708232522,-313.79,0.0001331,2]
[338502370,1726708232533,-499.99,0.0001347,2]
[338502371,1726708232543,-150.0,0.00013677,2]
[338502372,1726708232552,-3152.03373757,0.00013678,2]
[338502373,1726708232563,-2204.70442374,0.00013678,2]
[338502374,1726708233994,-794.34654594,0.00013678,2]
[338502375,1726708234005,-3508.99,0.00013678,2]
[338502376,1726708234115,-1588.30283767,0.00013678,2]
[338502378,1726708238308,-730.78992308,0.00013678,2]
[338502379,1726708238451,-6445.5,0.00013678,2]
[338502381,1726708240477,-4760.10068216,0.00013678,2]
[338502382,1726708240489,-573.16626518,0.00013678,2]
[338502383,1726708240500,-38361.31731449,0.00013678,2]
[338502384,1726708240510,-498.185,0.00013688,2]
[338502385,1726708240519,-150.0,0.00013699,2]
[338502386,1726708240529,-191.9,0.00013699,2]
[338502387,1726708240538,-361.48,0.000137,2]
[338502388,1726708240548,-2855.7926,0.00013707,2]
[338502389,1726708240557,-260.963,0.00013707,2]
[338502390,1726708240567,-500.0,0.0001376,2]
[338502391,1726708240577,-439.501368,0.000139,2]
[338502392,1726708240586,-500.0,0.00013904,2]
[338502393,1726708240596,-500.0,0.00013904,2]
[338502394,1726708240605,-150.0,0.00014011,2]
[338502395,1726708240615,-150.0,0.00014059,2]
[338502396,1726708240624,-163.34,0.00014318,2]
[338502397,1726708240634,-1000.0,0.0001432,2]
[338502398,1726708240643,-2500.0,0.0001432,2]
[338502399,1726708240653,-150.237,0.00014394,2]
[338502400,1726708240662,-1044.22728753,0.00014413,2]
[338502401,1726708240671,-150.0,0.0001442,2]
[338502402,1726708240681,-180.39140505,0.0001442,2]
[338502403,1726708240691,-8345.964,0.0001442,2]
[338502404,1726708240700,-87418.8575,0.0001442,2]
[338502405,1726708240710,-352.0441,0.0001442,2]
[338502406,1726708240719,-2885.4926,0.0001442,2]
[338502407,1726708240729,-167.27570748,0.0001442,2]
[338502408,1726708240739,-332.09434147,0.0001442,2]
[338502409,1726708240748,-1044.22728747,0.00014483,2]
[338502410,1726708240757,-150.0,0.00014493,2]
[338502411,1726708240767,-29239.0,0.000145,3]
[338502412,1726708240777,-154.61,0.0001451,2]
[338502413,1726708240804,-500.0,0.0001452,2]
[338502415,1726708240814,-500.0,0.0001452,2]
[338502417,1726708240823,-500.0,0.0001452,2]
[338502419,1726708240834,-500.0,0.0001452,2]
[338502421,1726708240843,-500.0,0.0001452,2]
[338502422,1726708240853,-247.39081473,0.0001452,2]
[338502423,1726708240863,-500.0,0.0001452,2]
[338502424,1726708240873,-500.0,0.0001452,2]
[338502425,1726708240884,-500.0,0.0001452,2]
[338502426,1726708240893,-558.59797617,0.0001452,2]
[338502427,1726708240903,-500.0,0.0001452,2]
[338502429,1726708240912,-500.0,0.0001452,2]
[338502431,1726708240922,-500.0,0.0001452,2]
[338502433,1726708240931,-500.0,0.0001452,2]
[338502434,1726708240941,-500.0,0.0001452,2]
[338502435,1726708240951,-500.0,0.0001452,2]
[338502436,1726708240960,-500.0,0.0001452,2]
[338502437,1726708240969,-500.0,0.0001452,2]
[338502438,1726708240978,-500.0,0.0001452,2]
[338502439,1726708240988,-500.0,0.0001452,2]
[338502444,1726708241086,-500.0,0.0001452,2]
[338502446,1726708241095,-500.0,0.0001452,2]
[338502448,1726708241104,-500.0,0.0001452,2]
[338502450,1726708241114,-150.99818335,0.0001452,2]
[338502451,1726708241123,-709.09,0.0001452,2]